bitfinex/quotes_ETHUSD_20241122
["timestamp","ask_amount","ask_price","bid_price","bid_amount"]
[1732294250596,3.6639358,3303.3,3302.4,0.852]
[1732294250798,0.03288204,3303.2,3302.4,0.852]
[1732294252875,3.6639358,3303.1,3302.4,0.852]
[1732294253074,0.03288204,3303.0,3302.6,0.55]
[1732294253293,3.6639358,3303.1,3302.6,0.55]
[1732294253471,3.6639358,3303.1,3302.6,3.55]
[1732294253672,3.6639358,3303.4,3303.0,0.55]
[1732294253874,3.6639358,3303.7,3303.0,0.55]
[1732294254177,0.03288204,3303.6,3303.0,0.55]
[1732294254393,0.03288204,3303.6,3303.0,1.25893183]
[1732294254574,3.69681784,3303.7,3303.0,1.25893183]
[1732294254972,3.6639358,3303.7,3303.2,3.0]
[1732294255201,3.6639358,3303.7,3303.4,0.55]
[1732294255784,3.6639358,3303.7,3303.5,0.302]
[1732294255785,0.03288204,3303.6,3303.5,0.302]
[1732294256133,3.6639358,3303.7,3303.5,0.302]
[1732294256799,3.6639358,3304.0,3303.7,0.852]
[1732294257128,0.1469167,3304.1,3303.8,0.852]
[1732294257421,0.17979874,3304.1,3303.8,1.01469]
[1732294257587,0.17979874,3304.1,3303.8,0.852]
[1732294259526,0.1469167,3304.1,3303.8,0.852]
[1732294259709,0.17979874,3304.1,3303.8,0.852]
[1732294259911,0.1469167,3304.1,3303.8,0.852]
[1732294260245,0.1469167,3304.1,3303.9,0.302]
[1732294260529,0.17979874,3304.1,3303.6,0.302]
[1732294261233,0.7845,3304.0,3303.6,0.302]
[1732294261430,0.03288204,3303.9,3302.9,0.302]
[1732294261636,3.6639358,3303.8,3302.9,0.65557183]
[1732294262000,3.6639358,3303.8,3303.2,0.302]
[1732294262199,3.6639358,3303.8,3303.1,2.78231825]
[1732294262200,3.6639358,3303.8,3303.5,0.852]
[1732294263632,3.6639358,3303.8,3303.6,0.302]
[1732294263832,3.6639358,3304.0,3303.6,0.302]
[1732294264347,0.03288204,3303.9,3303.6,0.302]
[1732294264838,0.823,3303.8,3303.6,0.302]
[1732294265004,0.03288204,3303.7,3303.6,0.302]
[1732294266107,3.6639358,3304.0,3303.6,0.302]
[1732294266312,3.6639358,3304.0,3303.5,0.302]
[1732294266803,0.03288204,3303.9,3303.5,0.302]
[1732294267409,0.03288204,3303.9,3303.3,0.302]
[1732294267716,3.6639358,3304.0,3303.3,0.88023182]
[1732294267923,3.6639358,3303.9,3303.7,0.852]
[1732294268124,0.1469167,3304.1,3303.7,3.63431825]
[1732294268320,0.1469167,3304.1,3303.9,0.852]
[1732294268754,0.1469167,3304.1,3304.0,3.63431825]
[1732294269246,0.1469167,3304.1,3304.0,4.42171825]
[1732294270011,0.1469167,3304.1,3304.0,7.42171825]
[1732294271961,0.1469167,3304.1,3304.0,0.852]
[1732294272110,0.1469167,3304.1,3303.9,0.302]
[1732294272536,0.1469167,3304.1,3303.9,3.302]
[1732294272746,0.1469167,3304.1,3304.0,1.66673183]
[1732294273612,0.1469167,3304.1,3304.0,1.46043183]
[1732294273838,0.1469167,3304.1,3304.0,0.852]
[1732294274146,0.1469167,3304.1,3304.0,0.302]
[1732294274744,3.6639358,3304.8,3304.0,1.09446443]
[1732294274911,3.6639358,3305.0,3304.5,0.302]
[1732294275540,4.4763358,3305.5,3304.8,0.852]
[1732294275754,3.6639358,3305.4,3304.8,4.21543183]
[1732294276545,3.6639358,3305.4,3304.8,3.99775008]
[1732294276755,3.6639358,3305.4,3304.8,1.21543183]
[1732294277051,3.6639358,3305.4,3305.0,0.55]
[1732294277353,3.6639358,3305.4,3305.0,2.78231825]
[1732294277559,3.6639358,3305.4,3305.3,2.78231825]
[1732294277846,0.01,3307.1,3305.3,2.78231825]
[1732294277847,0.8249,3306.3,3305.4,3.55]
[1732294278059,0.8249,3306.3,3305.7,2.78231825]
[1732294278060,3.6639358,3306.2,3305.7,2.78231825]
[1732294278356,3.6639358,3306.2,3305.5,0.03024989]
[1732294278357,0.8249,3306.6,3306.0,2.78231825]
[1732294278564,0.8249,3306.6,3306.1,0.55]
[1732294278862,0.8249,3306.9,3306.3,2.78231825]
[1732294279219,0.85778204,3306.9,3306.1,3.55]
[1732294279644,0.8249,3306.9,3306.1,3.55]
[1732294280039,0.03288204,3306.8,3306.1,3.0]
[1732294280256,0.03288204,3306.8,3306.2,0.55]
[1732294280431,0.03288204,3306.8,3306.1,3.0]
[1732294280769,0.8249,3306.9,3306.3,2.78231825]
[1732294281365,0.03288204,3306.8,3305.7,2.78231825]
[1732294281549,0.8125,3306.7,3305.5,3.0]
[1732294281719,0.84538204,3306.7,3305.5,3.65747182]
[1732294282281,0.84538204,3306.7,3305.4,2.78231825]
[1732294282451,3.6639358,3306.6,3305.4,2.78231825]
[1732294282654,0.03288204,3306.5,3305.4,2.78231825]
[1732294282848,0.7829,3306.3,3305.1,2.78231825]
[1732294283038,0.03288204,3306.2,3305.2,0.27823183]
[1732294283239,3.6639358,3306.1,3305.4,2.78231825]
[1732294283672,3.6639358,3306.1,3305.5,0.8226]
[1732294284158,3.6639358,3306.1,3305.5,3.8226]
[1732294285037,3.6639358,3306.1,3305.6,0.55]
[1732294285238,0.03288204,3306.0,3305.5,3.0]
[1732294285437,3.69681784,3306.0,3305.5,3.0]
[1732294285672,3.6639358,3306.0,3305.5,3.57823182]
[1732294285881,0.03288204,3305.9,3305.2,3.7625]
[1732294286087,3.6639358,3306.0,3305.4,2.78231825]
[1732294286245,3.6639358,3306.0,3305.5,3.0]
[1732294286446,3.6639358,3306.0,3305.7,3.33231825]
[1732294286754,3.6639358,3306.5,3305.9,0.55]
[1732294288372,0.8252,3306.9,3305.9,0.55]
[1732294288373,3.6639358,3306.8,3306.0,2.78231825]
[1732294288538,3.6639358,3306.8,3306.1,3.55]
[1732294288738,3.6639358,3306.8,3306.1,0.55]
[1732294288739,3.69681784,3306.8,3306.1,0.55]
[1732294289051,3.6639358,3306.8,3306.0,3.21356825]
[1732294289253,3.6639358,3306.8,3306.3,2.78231825]
[1732294290585,3.6639358,3306.8,3306.1,0.87135682]
[1732294290812,3.6639358,3306.8,3306.2,0.302]
[1732294290969,0.03288204,3306.7,3306.2,0.302]
[1732294291172,3.6639358,3306.8,3306.2,0.302]
[1732294291879,0.8252,3306.9,3306.2,0.302]
[1732294292241,0.8252,3306.9,3306.3,0.302]
[1732294292454,0.03288204,3306.8,3305.8,6.08431825]
[1732294292659,0.753,3306.7,3305.9,1.15843183]
[1732294292880,0.753,3307.1,3306.2,0.302]
[1732294293769,0.753,3307.1,3306.2,3.302]
[1732294294188,0.03288204,3307.0,3306.2,3.302]
[1732294294347,0.03288204,3307.0,3306.1,2.78231825]
[1732294294348,0.03288204,3307.0,3306.1,0.302]
[1732294294549,0.03288204,3307.0,3306.2,0.55]
[1732294294748,0.7711,3306.9,3306.1,0.302]
[1732294294974,3.69681784,3306.8,3306.1,0.302]
[1732294295494,3.69681784,3306.8,3306.0,0.302]
[1732294295675,3.69681784,3306.8,3306.0,0.98901183]
[1732294295988,3.69681784,3306.8,3306.0,0.68701183]
[1732294296485,3.69681784,3306.8,3305.8,0.55]
[1732294296855,3.69681784,3306.8,3305.6,0.302]
[1732294297119,0.7711,3306.7,3305.5,2.78231825]
[1732294297280,0.03288204,3306.6,3305.6,0.36000183]
[1732294297480,0.7513,3306.5,3305.6,0.36000183]
[1732294297714,0.03288204,3306.4,3305.3,0.8177]
[1732294297883,3.6639358,3306.3,3305.3,0.8177]
[1732294298080,0.7513,3306.1,3305.0,1.1158]
[1732294298284,0.03288204,3306.0,3305.2,3.08431825]
[1732294298515,0.7513,3306.1,3305.2,3.08431825]
[1732294299315,0.7513,3306.1,3305.3,0.55]
[1732294299515,0.7513,3306.1,3305.3,3.55]
[1732294299820,0.7513,3306.1,3305.5,0.55]
[1732294301219,3.6639358,3306.2,3305.5,0.55]
[1732294301220,3.6639358,3306.2,3305.8,2.78231825]
[1732294301635,3.6639358,3306.2,3305.7,1.3454]
[1732294302704,3.6639358,3306.2,3305.7,0.55]
[1732294302901,0.03288204,3306.1,3305.4,0.96543182]
[1732294303107,3.6639358,3306.2,3305.5,0.55]
[1732294303828,3.6639358,3306.3,3305.5,0.55]
[1732294304030,0.03288204,3306.2,3305.5,1.01474]
[1732294304734,3.6639358,3306.3,3305.9,2.78231825]
[1732294305121,3.6639358,3307.3,3306.3,4.6064]
[1732294305288,4.6334525,3307.4,3306.7,3.0]
[1732294305489,4.6334525,3307.4,3306.8,0.03023756]
[1732294305794,4.6334525,3307.4,3306.9,0.302]
[1732294306227,0.9695167,3307.4,3307.0,2.78231825]
[1732294306402,0.1469167,3307.4,3307.0,2.81255402]
[1732294306614,0.1469167,3307.4,3307.1,0.3114554]
[1732294306904,0.1469167,3307.4,3307.1,3.3114554]
[1732294308400,0.1469167,3307.4,3307.1,3.0]
[1732294308692,0.1469167,3307.4,3306.8,3.302]
[1732294309529,0.1469167,3307.4,3307.1,3.0]
[1732294310428,0.1469167,3307.4,3307.0,2.78231825]
[1732294310429,0.1469167,3307.4,3307.3,6.53651825]
[1732294310790,0.1469167,3307.4,3307.3,7.08651825]
[1732294311005,0.7546,3308.5,3307.6,0.302]
[1732294311332,4.4185358,3308.5,3307.9,3.0]
[1732294311630,4.4185358,3308.5,3307.4,3.0]
[1732294311631,0.03288204,3308.4,3307.4,3.0]
[1732294311793,0.7546,3308.3,3307.3,3.0]
[1732294311987,0.7546,3308.1,3307.0,3.7542]
[1732294312191,0.7546,3308.1,3307.2,2.78231825]
[1732294312429,0.7546,3308.1,3307.6,3.0]
[1732294312590,0.7546,3308.1,3307.7,0.57823182]
[1732294312792,4.4185358,3308.4,3307.6,3.33222987]
[1732294313016,4.4185358,3308.4,3307.6,4.08642987]
[1732294313198,4.4185358,3308.4,3307.9,3.0]
[1732294313390,0.03288204,3308.3,3307.6,1.0562]
[1732294313600,0.03288204,3308.3,3307.6,4.0562]
[1732294313825,4.4185358,3308.4,3307.6,4.0562]
[1732294314002,0.03288204,3308.3,3307.6,3.302]
[1732294314206,4.86038938,3308.4,3307.7,0.7542]
[1732294314403,4.4185358,3308.4,3307.7,1.0562]
[1732294314944,0.03288204,3308.3,3307.7,0.302]
[1732294315096,4.4185358,3308.4,3308.1,2.78231825]
[1732294316056,3.6639358,3308.3,3308.1,2.78231825]
[1732294316241,0.03288204,3308.2,3307.9,3.302]
[1732294316440,0.47473562,3308.2,3307.6,3.0]
[1732294316617,0.44185358,3308.2,3307.6,3.0]
[1732294316941,3.69681784,3308.3,3307.6,3.0]
[1732294316942,3.6639358,3308.1,3307.6,3.302]
[1732294317946,3.6639358,3308.1,3307.6,0.302]
[1732294318157,0.03288204,3308.0,3307.6,0.302]
[1732294318513,3.6639358,3308.1,3307.6,0.302]
[1732294318821,3.6639358,3308.1,3307.8,2.78231825]
[1732294319021,3.6639358,3308.1,3307.9,0.302]
[1732294319248,3.6616558,3308.1,3307.9,3.302]
[1732294319576,3.66107095,3308.1,3307.9,0.302]
[1732294320784,3.66107095,3308.1,3307.8,2.78231825]
[1732294321070,0.03288204,3308.0,3307.6,0.302]
[1732294321243,0.7558,3307.9,3307.6,3.302]
[1732294321569,0.7558,3307.9,3307.6,3.0]
[1732294321779,3.66107095,3308.1,3307.8,2.78231825]
[1732294321959,3.66107095,3308.0,3307.8,2.78231825]
[1732294322155,0.03288204,3307.9,3307.5,2.78231825]
[1732294322464,3.69395299,3308.0,3307.5,2.78231825]
[1732294322633,0.7558,3307.9,3307.5,2.78231825]
[1732294323033,0.78868204,3307.9,3307.5,2.78231825]
[1732294323228,0.7558,3307.9,3307.6,3.0]
[1732294324070,0.7558,3307.9,3307.8,2.78231825]
[1732294324462,3.66107095,3308.0,3307.8,2.78231825]
[1732294324935,3.66107095,3307.9,3307.8,2.78231825]
[1732294327034,3.66107095,3307.9,3307.6,3.0]
[1732294327462,0.03288204,3307.8,3307.6,3.0]
[1732294327675,3.66107095,3308.1,3307.6,3.0]
[1732294328034,0.03288204,3308.0,3307.6,3.0]
[1732294328385,3.66107095,3308.1,3307.6,3.0]
[1732294328668,3.66107095,3308.1,3307.8,2.78231825]
[1732294329235,3.66107095,3308.1,3307.9,3.0]
[1732294330785,3.66107095,3309.0,3308.1,0.302]
[1732294330935,3.66107095,3309.1,3308.9,2.78231825]
[1732294331657,3.66107095,3309.1,3308.7,3.0]
[1732294331658,0.03288204,3309.0,3308.7,3.0]
[1732294332270,3.66107095,3309.1,3308.7,3.0]
[1732294332443,0.03288204,3309.0,3308.7,3.0]
[1732294332646,0.8143,3308.9,3307.9,2.78231825]
[1732294332866,4.10452805,3309.1,3307.9,2.78231825]
[1732294332867,4.46815299,3308.8,3307.9,2.78231825]
[1732294333064,4.43527095,3308.7,3307.9,2.78231825]
[1732294333230,4.43527095,3308.7,3307.7,0.302]
[1732294333231,0.7742,3308.5,3307.7,0.302]
[1732294333440,0.7742,3308.5,3307.0,0.8094]
[1732294333441,0.7742,3308.5,3308.2,2.78231825]
[1732294334279,0.03288204,3308.4,3307.9,2.78231825]
[1732294334456,0.03288204,3308.4,3307.7,3.0]
[1732294334672,0.7742,3308.5,3308.0,3.0]
[1732294335394,0.03288204,3308.4,3308.0,3.0]
[1732294335594,0.03288204,3308.4,3307.7,3.0]
[1732294335968,0.7742,3308.5,3307.6,3.0]
[1732294336387,0.7742,3308.5,3307.7,0.302]
[1732294336560,0.7742,3308.5,3307.9,3.0]
[1732294336760,3.66107095,3308.7,3308.1,2.78231825]
[1732294336984,3.66107095,3309.1,3308.5,3.0]
[1732294337197,3.66107095,3309.1,3308.8,3.0]
[1732294337494,0.8101,3309.2,3308.6,0.57823182]
[1732294337695,0.8101,3309.2,3308.5,0.302]
[1732294337920,0.03288204,3309.1,3308.0,0.7887]
[1732294338203,3.66107095,3309.0,3308.1,0.37887]
[1732294338559,0.03288204,3308.9,3308.1,0.37887]
[1732294338861,0.8291,3308.8,3308.1,0.37887]
[1732294339059,0.03288204,3308.7,3308.1,0.37887]
[1732294339305,0.8291,3308.8,3308.2,0.302]
[1732294339474,0.03288204,3308.7,3308.1,0.37887]
[1732294339670,0.8291,3308.8,3308.1,0.37887]
[1732294339874,0.03288204,3308.7,3308.1,0.37887]
[1732294340807,0.8291,3308.8,3308.1,0.37887]
[1732294340963,0.03288204,3308.7,3308.1,0.37887]
[1732294341302,0.03288204,3308.7,3307.9,0.302]
[1732294341797,0.8291,3308.8,3307.9,3.302]
[1732294342288,0.03288204,3308.7,3307.7,0.302]
[1732294342491,0.797,3308.6,3307.7,0.302]
[1732294342661,0.8047,3308.4,3307.3,0.302]
[1732294342866,0.8047,3308.2,3307.3,0.302]
[1732294343091,0.03288204,3308.1,3306.9,3.57781825]
[1732294343289,0.8047,3307.9,3307.0,0.35778183]
[1732294343502,0.83758204,3307.8,3306.6,3.57781825]
[1732294343665,3.66107095,3307.7,3306.7,0.302]
[1732294343873,3.69395299,3307.6,3306.3,2.78231825]
[1732294344076,0.8027,3307.4,3305.9,3.55881825]
[1732294344290,0.8027,3307.2,3305.9,3.55881825]
[1732294344617,0.8027,3307.2,3306.5,3.55881825]
[1732294344781,0.8027,3307.2,3306.5,3.86081825]
[1732294345313,0.8027,3307.2,3306.6,0.03023788]
[1732294345469,3.66107095,3307.3,3306.6,0.03023788]
[1732294345470,0.8092,3307.6,3306.9,3.302]
[1732294345669,0.8092,3307.9,3307.2,3.8305]
[1732294345917,0.03288204,3307.8,3306.9,3.302]
[1732294346071,0.8092,3307.7,3306.6,3.0]
[1732294346282,0.84208204,3307.6,3306.6,3.0]
[1732294346484,0.8092,3307.6,3306.6,3.0]
[1732294347099,0.8092,3307.6,3306.7,0.3905365]
[1732294347274,0.8092,3307.6,3306.7,1.04104599]
[1732294347906,0.8092,3307.6,3306.7,0.65050949]
[1732294348115,0.03288204,3307.5,3306.7,0.65050949]
[1732294348417,0.8092,3307.6,3306.7,0.65050949]
[1732294348909,4.47027095,3307.6,3307.2,3.0]
[1732294349901,4.47027095,3307.6,3306.9,0.302]
[1732294350102,4.47027095,3307.6,3306.9,3.302]
[1732294350300,4.47027095,3307.6,3307.1,3.08431825]
[1732294350518,4.47027095,3307.6,3307.2,3.30843183]
[1732294350702,4.47027095,3307.6,3307.3,0.302]
[1732294351302,0.03288204,3307.5,3307.3,0.302]
[1732294351720,4.47027095,3307.6,3307.3,0.302]
[1732294352023,4.47027095,3307.6,3307.0,0.302]
[1732294352229,4.47027095,3307.6,3307.0,0.88023182]
[1732294352914,0.03288204,3307.5,3307.0,0.88023182]
[1732294353115,0.7599,3307.4,3306.6,3.302]
[1732294353315,0.7599,3307.2,3306.6,0.302]
[1732294353505,0.7599,3307.0,3306.6,0.302]
[1732294354116,0.7599,3307.0,3306.4,0.302]
[1732294354316,0.7599,3307.0,3306.6,0.302]
[1732294354526,0.03288204,3306.9,3306.8,0.302]
[1732294354690,0.7599,3307.0,3306.8,0.302]
[1732294355423,0.7599,3307.0,3306.1,0.302]
[1732294355732,0.79278204,3307.0,3306.1,3.302]
[1732294355929,0.79278204,3307.0,3306.3,0.302]
[1732294356122,0.7599,3307.0,3306.7,2.78231825]
[1732294356295,0.7599,3307.0,3306.5,0.302]
[1732294357328,0.79278204,3307.0,3306.5,0.302]
[1732294357633,0.79278204,3307.0,3306.3,0.302]
[1732294357932,0.7599,3307.0,3306.5,0.302]
[1732294358815,0.7599,3307.0,3306.5,3.302]
[1732294359019,0.7599,3307.0,3306.7,0.302]
[1732294360890,4.48777095,3307.8,3306.8,3.302]
[1732294361107,0.03288204,3307.7,3306.8,3.302]
[1732294361403,0.03288204,3307.7,3306.1,0.30302408]
[1732294361404,3.66107095,3307.7,3307.1,3.0]
[1732294361732,0.8267,3308.2,3307.5,3.0]
[1732294362033,0.8267,3308.2,3307.5,3.302]
[1732294362612,0.8068,3308.7,3307.7,0.302]
[1732294362935,0.03288204,3308.6,3307.7,0.302]
[1732294363313,0.03288204,3308.6,3307.7,0.6322]
[1732294363498,4.44,3308.5,3307.8,3.0]
[1732294363699,0.03288204,3308.4,3307.5,3.302]
[1732294364000,4.44,3308.5,3307.5,3.302]
[1732294364231,0.766,3308.4,3307.7,0.302]
[1732294364531,0.03288204,3308.3,3307.7,0.302]
[1732294364828,0.766,3308.4,3307.7,0.302]
[1732294365337,0.766,3308.4,3307.7,3.08431825]
[1732294365532,0.766,3308.4,3307.8,3.0]
[1732294365833,0.766,3308.4,3307.9,0.60843183]
[1732294366035,0.766,3308.4,3307.5,3.8418298]
[1732294366856,0.766,3308.4,3307.7,2.78231825]
[1732294367130,0.7581,3309.2,3308.3,2.78231825]
[1732294367335,4.44,3309.1,3308.4,3.0]
[1732294367708,0.03288204,3309.0,3308.1,3.759]
[1732294367913,0.03288204,3309.0,3308.2,0.4061]
[1732294368223,4.44,3309.1,3308.2,0.4363234]
[1732294368471,4.44,3309.1,3308.6,2.78231825]
[1732294368599,4.44,3309.1,3308.7,3.27823183]
[1732294369298,4.44,3309.1,3308.2,3.4061]
[1732294369532,4.44,3309.1,3308.2,4.19042278]
[1732294369739,4.44,3309.1,3308.5,3.0]
[1732294370735,4.44,3309.1,3308.8,3.0]
[1732294370931,4.44,3309.1,3308.5,3.0]
[1732294371141,4.44,3309.1,3308.6,0.57823182]
[1732294371520,4.44,3309.1,3308.8,3.0]
[1732294371743,0.8039,3310.1,3309.0,2.78231825]
[1732294372045,4.44,3310.0,3309.0,2.78231825]
[1732294372268,4.44,3310.0,3309.0,3.48157554]
[1732294372429,0.03288204,3309.9,3309.0,0.69925729]
[1732294373036,0.8039,3309.8,3309.0,0.69925729]
[1732294373927,0.03288204,3309.7,3309.0,0.69925729]
[1732294374434,0.8039,3309.8,3309.0,0.69925729]
[1732294375655,0.8004,3309.6,3309.0,0.69925729]
[1732294376004,4.44,3309.5,3308.5,3.805]
[1732294376140,0.55,3309.4,3308.6,0.69778548]
[1732294376349,4.99,3309.4,3308.6,0.69778548]
[1732294376967,4.44,3309.4,3309.3,3.0]
[1732294377139,4.44,3309.9,3309.4,0.7578]
[1732294377347,0.9202167,3310.6,3310.0,3.0]
[1732294378134,0.9202167,3310.6,3309.7,3.0]
[1732294378356,0.9202167,3310.6,3309.8,0.57823182]
[1732294378357,0.03288204,3310.5,3309.8,0.57823182]
[1732294378573,0.03288204,3310.4,3309.8,0.57823182]
[1732294378874,0.7565,3310.3,3309.3,0.57823182]
[1732294379063,4.47288204,3310.2,3309.2,0.8182]
[1732294379572,1.3065,3310.1,3309.0,0.302]
[1732294379761,0.55,3309.9,3309.0,0.302]
[1732294379965,0.55,3309.9,3308.8,3.8182]
[1732294379966,0.55,3309.9,3308.9,0.302]
[1732294380168,0.55,3309.9,3308.9,0.96205183]
[1732294380476,0.8272,3309.6,3308.9,0.66005183]
[1732294380772,0.58288204,3309.5,3308.5,0.7858]
[1732294381071,0.55,3309.5,3308.6,0.35681183]
[1732294381276,0.58288204,3309.5,3308.6,0.35681183]
[1732294381477,0.58288204,3309.5,3308.7,0.302]
[1732294381665,0.55,3309.5,3308.9,0.302]
[1732294381869,0.55,3309.5,3309.0,0.6322]
[1732294383279,0.55,3309.5,3309.2,0.302]
[1732294383589,4.44,3309.6,3309.2,0.302]
[1732294384742,3.26191755,3309.6,3309.4,3.302]
[1732294384941,3.26191755,3309.6,3309.3,3.20841252]
[1732294384942,0.7885,3310.2,3309.5,0.65104125]
[1732294385146,0.7885,3310.2,3309.2,0.302]
[1732294386078,0.7885,3310.2,3308.0,0.01]
[1732294386079,0.55,3309.8,3308.9,0.302]
[1732294386289,0.55,3309.4,3308.0,3.60761825]
[1732294386445,1.3133,3309.2,3308.1,0.36076183]
[1732294386641,1.34618204,3309.2,3308.1,0.36076183]
[1732294387185,1.34618204,3309.2,3308.2,0.302]
[1732294387572,0.8249,3308.9,3308.3,0.302]
[1732294387889,0.03288204,3308.8,3308.3,0.302]
[1732294388091,0.55,3308.7,3308.3,0.302]
[1732294388386,0.55,3308.5,3307.9,0.302]
[1732294388582,0.03288204,3308.4,3307.5,0.302]
[1732294388791,2.08191755,3308.4,3307.7,3.08431825]
[1732294389280,2.08191755,3308.4,3308.0,2.78231825]
[1732294389484,2.08191755,3308.4,3308.1,3.0]
[1732294390274,2.08191755,3308.4,3308.1,3.302]
[1732294390784,2.08191755,3308.4,3308.1,3.0]
[1732294391147,2.08191755,3308.4,3307.7,3.08431825]
[1732294391347,2.08191755,3308.4,3307.8,3.0]
[1732294391348,0.82488204,3308.3,3307.8,3.0]
[1732294391680,0.792,3308.3,3307.8,3.0]
[1732294392598,0.7837,3309.4,3308.1,3.0]
[1732294392748,0.7837,3309.2,3307.9,0.302]
[1732294392948,0.7837,3309.0,3307.9,0.302]
[1732294393174,0.7837,3308.8,3307.9,0.302]
[1732294393386,0.03288204,3308.7,3307.9,0.302]
[1732294393545,2.86561755,3308.6,3307.6,0.302]
[1732294393749,0.58288204,3308.5,3307.6,0.60843183]
[1732294393985,0.58288204,3308.5,3307.4,2.78231825]
[1732294394285,0.58288204,3308.5,3306.3,0.43273346]
[1732294394286,0.7837,3308.2,3307.1,2.78231825]
[1732294394492,0.7837,3308.0,3307.1,2.78231825]
[1732294394804,0.7837,3308.0,3307.1,3.08431825]
[1732294394987,0.7837,3308.0,3307.4,2.78231825]
[1732294395560,0.7837,3308.0,3307.5,3.0]
[1732294395980,0.03288204,3307.9,3307.2,3.0]
[1732294396160,2.08191755,3308.1,3307.5,3.0]
[1732294396364,0.798,3308.0,3307.5,3.0]
[1732294397301,0.03288204,3307.9,3307.5,3.0]
[1732294397677,0.798,3308.0,3307.5,3.0]
[1732294397865,0.798,3308.0,3307.5,3.302]
[1732294398066,0.798,3308.0,3307.6,0.60843183]
[1732294398369,2.08191755,3308.1,3307.9,3.0]
[1732294398706,0.7717,3308.3,3307.9,3.0]
[1732294399069,0.7717,3308.3,3307.6,0.91043183]
[1732294399371,0.7717,3308.3,3307.7,0.39104318]
[1732294399868,0.7717,3308.3,3307.6,0.91043183]
[1732294399869,0.03288204,3308.2,3307.6,0.91043183]
[1732294400064,0.7717,3308.3,3307.5,3.302]
[1732294400265,0.03288204,3308.2,3307.5,3.302]
[1732294400663,0.7717,3308.3,3307.5,3.0]
[1732294400861,0.7717,3308.3,3307.6,0.88023182]
[1732294401065,0.03288204,3308.2,3307.6,0.88023182]
[1732294401265,0.7529,3308.1,3307.7,0.302]
[1732294401507,0.03288204,3308.0,3307.7,0.302]
[1732294402074,0.7529,3308.1,3307.7,0.302]
[1732294403525,0.55,3307.8,3307.1,0.302]
[1732294403699,0.7878,3307.6,3307.1,0.302]
[1732294403894,0.03288204,3307.5,3307.1,0.302]
[1732294404096,2.08191755,3307.7,3307.3,3.85741825]
[1732294404499,2.08191755,3307.7,3307.5,0.302]
[1732294404917,2.08191755,3307.7,3307.5,0.33223163]
[1732294405084,0.8304,3308.5,3307.5,3.302]
[1732294405286,0.03288204,3308.4,3307.9,0.302]
[1732294405587,0.8304,3308.3,3307.9,0.302]
[1732294405802,4.8642358,3309.0,3307.9,0.302]
[1732294405803,0.83928204,3308.2,3307.9,0.302]
[1732294406062,0.8064,3308.2,3307.9,0.302]
[1732294406421,0.8064,3308.2,3308.0,0.302]
[1732294406734,0.55,3308.1,3308.0,0.302]
[1732294407229,2.66479959,3308.1,3307.0,0.302]
[1732294407429,0.8267,3308.0,3307.0,0.85197212]
[1732294407613,0.55,3307.6,3306.9,0.302]
[1732294407815,0.7644,3307.4,3306.9,0.302]
[1732294408127,0.03288204,3307.3,3306.9,0.302]
[1732294408618,0.03288204,3307.3,3306.2,3.59251825]
[1732294408619,0.03288204,3307.3,3307.0,0.302]
[1732294409592,0.03288204,3307.3,3306.4,0.302]
[1732294409850,0.7644,3307.4,3306.4,0.302]
[1732294410053,0.79728204,3307.4,3306.4,0.302]
[1732294410347,2.08191755,3307.5,3307.1,0.302]
[1732294411431,2.08191755,3307.5,3307.2,0.302]
[1732294412021,2.08191755,3307.7,3307.2,0.302]
[1732294412216,2.08191755,3307.7,3307.2,3.302]
[1732294412441,2.08191755,3307.7,3307.4,0.302]
[1732294413722,2.08191755,3307.7,3307.5,0.302]
[1732294415053,0.8232,3308.1,3307.5,1.088]
[1732294416153,2.84101755,3308.6,3307.5,1.088]
[1732294416353,2.84101755,3308.6,3307.5,4.088]
[1732294416571,0.7591,3308.9,3308.1,0.8014]
[1732294416723,0.7591,3308.9,3308.3,3.08431825]
[1732294417058,0.7566,3309.2,3308.4,3.302]
[1732294417373,0.7566,3309.2,3308.5,0.91043183]
[1732294417932,0.7566,3309.2,3308.5,0.302]
[1732294418167,0.78948204,3309.2,3308.5,0.302]
[1732294418370,0.7566,3309.2,3308.5,0.302]
[1732294418572,0.798,3309.5,3308.8,0.302]
[1732294418770,0.798,3309.8,3309.1,0.302]
[1732294418958,2.87991755,3309.8,3309.1,0.9134537]
[1732294419669,0.03288204,3310.5,3309.1,0.9134537]
[1732294419670,0.798,3310.4,3309.3,0.302]
[1732294419829,0.798,3310.4,3309.3,3.33221432]
[1732294420030,0.798,3310.4,3309.3,3.302]
[1732294420236,0.03288204,3310.3,3309.4,0.98750183]
[1732294420475,0.798,3310.4,3309.4,0.98750183]
[1732294420782,0.798,3310.4,3309.4,0.68550183]
[1732294422035,0.03288204,3310.3,3309.4,0.68550183]
[1732294422230,0.03288204,3310.3,3309.5,0.36855018]
[1732294422651,0.55,3310.2,3309.5,0.36855018]
[1732294422854,0.55,3310.2,3309.2,0.7707]
[1732294423072,0.55,3310.3,3309.2,0.7707]
[1732294423478,0.55,3310.3,3309.5,2.78231825]
[1732294423677,0.55,3310.3,3309.6,3.0]
[1732294423852,0.55,3310.3,3309.7,0.57823182]
[1732294424059,2.63191755,3310.3,3309.7,0.57823182]
[1732294424455,2.08191755,3310.3,3309.8,0.03021265]
[1732294424652,2.87641755,3311.1,3310.3,3.0]
[1732294424855,2.87641755,3311.1,3310.4,0.57823182]
[1732294425055,2.08191755,3311.1,3310.5,0.8227]
[1732294425281,0.7945,3311.4,3310.5,6.60501825]
[1732294425282,2.08191755,3311.3,3310.5,6.60501825]
[1732294425882,0.03288204,3311.2,3310.5,0.8227]